fUST/lending_fUST_20260227
["ID","MTS","AMOUNT","RATE_DAILY","PERIOD"]
[406765970,1772167839428,-251.11897888,9.829e-05,2]
[406765973,1772167839437,-260.4103811,9.829e-05,2]
[406765975,1772167839446,-270.0455652,9.829e-05,2]
[406765977,1772167839456,-280.03725112,9.829e-05,2]
[406765979,1772167839465,-290.39862941,9.829e-05,2]
[406765981,1772167839474,-301.1433787,9.829e-05,2]
[406765983,1772167839483,-545.2765704,9.829e-05,2]
[406765985,1772167839493,-250.0,9.829e-05,2]
[406765987,1772167839502,-250.0,9.829e-05,2]
[406765989,1772167839511,-250.0,9.829e-05,2]
[406765990,1772167839521,-250.0,9.829e-05,2]
[406765993,1772167839531,-250.0,9.829e-05,2]
[406766015,1772167839709,-250.0,9.829e-05,2]
[406766019,1772167839739,-250.0,9.829e-05,2]
[406766021,1772167839748,-250.0,9.829e-05,2]
[406766023,1772167839758,-250.0,9.829e-05,2]
[406766025,1772167839767,-250.0,9.829e-05,2]
[406766027,1772167839782,-250.0,9.829e-05,2]
[406766029,1772167839791,-1759.9879786,9.833e-05,2]
[406766031,1772167839800,-10870.1108356,9.833e-05,2]
[406766034,1772167839813,-2000.0,9.833e-05,2]
[406766036,1772167839825,-18200.8905997,9.833e-05,2]
[406766038,1772167839834,-229.62027705,9.833e-05,2]
[406766040,1772167839843,-413.31649869,9.833e-05,2]
[406766042,1772167839852,-734.78488657,9.833e-05,2]
[406766044,1772167839861,-699.32324074,9.833e-05,2]
[406766046,1772167839870,-1258.78183333,9.833e-05,2]
[406766048,1772167839879,-2237.83437037,9.833e-05,2]
[406766050,1772167839888,-3493.1195875,9.833e-05,2]
[406766052,1772167839898,-151.0,9.833e-05,2]
[406766054,1772167839907,-1146.95328388,9.833e-05,2]
[406766056,1772167839916,-210.1971892,9.833e-05,2]
[406766058,1772167839925,-1046.08219422,9.833e-05,2]
[406766060,1772167839935,-3516.2314963,9.833e-05,2]
[406766062,1772167839944,-18830.78177859,9.834e-05,2]
[406766064,1772167839954,-213.6,9.834e-05,2]
[406766066,1772167839963,-9000.0,9.854e-05,2]
[406766068,1772167839972,-9000.0,9.854e-05,2]
[406766070,1772167839982,-920.70438081,9.854e-05,2]
[406766072,1772167839991,-519.0,9.883e-05,2]
[406766074,1772167840000,-500.0,9.883e-05,2]
[406766076,1772167840009,-519.0,9.938e-05,2]
[406766078,1772167840018,-564.3989234,9.938e-05,2]
[406766080,1772167840028,-519.0,9.992e-05,2]
[406766082,1772167840037,-20462.66373621,0.0001,2]
[406766084,1772167840046,-236.83969918,0.0001,2]
[406766086,1772167840055,-500.0,0.0001,2]
[406766088,1772167840064,-15901.06902952,0.0001,2]
[406766090,1772167840073,-446.45,0.00010004,2]
[406766092,1772167840082,-5540.49261327,0.00010034,2]
[406766094,1772167840092,-153.55,0.00010037,2]
[406766096,1772167840101,-519.0,0.00010047,2]
[406766098,1772167840110,-1553.940113,0.00010073,2]
[406766100,1772167840119,-222.47284432,0.00010092,2]
[406766102,1772167840128,-500.0,0.00010101,2]
[406766104,1772167840138,-519.0,0.00010102,2]
[406766106,1772167840147,-160.29,0.00010105,2]
[406766108,1772167840157,-519.0,0.00010157,2]
[406766110,1772167840166,-600.0,0.00010179,2]
[406766112,1772167840175,-519.0,0.00010212,2]
[406766114,1772167840184,-519.0,0.00010266,2]
[406766116,1772167840193,-500.0,0.00010297,2]
[406766118,1772167840205,-519.0,0.00010321,2]
[406766120,1772167840215,-338.0,0.0001033,2]
[406766122,1772167840224,-476.71940979,0.0001033,2]
[406766124,1772167840235,-228.43908216,0.00010372,2]
[406766126,1772167840245,-195.94517071,0.00010372,2]
[406766128,1772167840254,-719.04747942,0.00010375,2]
[406766130,1772167840263,-519.0,0.00010376,2]
[406766132,1772167840273,-162.380719,0.00010377,2]
[406766134,1772167840283,-519.0,0.00010431,2]
[406766136,1772167840292,-1553.940113,0.0001048,2]
[406766137,1772167840302,-519.0,0.00010486,2]
[406766138,1772167840311,-420.0,0.00010508,2]
[406766139,1772167840321,-420.0,0.00010508,2]
[406766140,1772167840330,-420.0,0.00010508,2]
[406766141,1772167840339,-420.0,0.00010508,2]
[406766142,1772167840348,-1680.0,0.00010508,2]
[406766143,1772167840357,-519.0,0.0001054,2]
[406766144,1772167840366,-519.0,0.00010595,2]
[406766145,1772167840375,-519.0,0.0001065,2]
[406766146,1772167840384,-502.27868348,0.00010659,2]
[406766147,1772167840393,-589.08090861,0.00010664,2]
[406766148,1772167840402,-904.10163027,0.0001069,2]
[406766149,1772167840411,-1060.3456355,0.00010701,2]
[406766150,1772167840420,-519.0,0.00010705,2]
[406766151,1772167840429,-1607.29178714,0.00010721,2]
[406766152,1772167840438,-1387.0,0.00010735,2]
[406766153,1772167840447,-637.0,0.00010735,2]
[406766154,1772167840457,-2182.0,0.00010735,2]
[406766155,1772167840465,-1885.05890755,0.00010738,2]
[406766156,1772167840475,-2511.39341741,0.00010752,2]
[406766157,1772167840484,-519.0,0.00010759,2]
[406766159,1772167840494,-2945.40454305,0.00010775,2]
[406766161,1772167840503,-3616.40652108,0.00010783,2]
[406766163,1772167840513,-192.68951975,0.00010796,2]
[406766165,1772167840522,-184.536,0.00010796,2]
[406766166,1772167840531,-4241.38254199,0.00010811,2]
[406766169,1772167840541,-4922.33109813,0.00010814,2]
[406766170,1772167840551,-538.6948103,0.00010814,2]
[406766172,1772167840560,-2529.30085388,0.00010847,3]
[406766174,1772167840569,-1928.1643462,0.00010847,3]
[406766176,1772167840579,-1040.7767652,0.00010851,2]
[406766178,1772167840589,-250.45160373,0.00010859,2]
[406766180,1772167840598,-1759.9879786,0.00010877,2]
[406766182,1772167840607,-1553.940113,0.00010887,2]
[406766184,1772167840616,-745.65223616,0.00010923,2]
[406766187,1772167840628,-168.3888056,0.00010925,2]
[406766188,1772167840637,-18363.481136,0.00010959,2]
[406766190,1772167840647,-387.4124423,0.00010982,2]
[406766193,1772167840657,-500.0,0.00011,2]
[406766195,1772167840665,-500.0,0.00011,2]
[406766197,1772167840675,-500.0,0.00011,2]
[406766199,1772167840684,-287.33,0.00011,2]
[406766201,1772167840693,-697.34239614,0.00011027,2]
[406766203,1772167840703,-1239.71981535,0.00011073,2]
[406766205,1772167840712,-6273.0,0.00011111,5]
[406766207,1772167840722,-1935.12514927,0.00011118,2]
[406766209,1772167840732,-720.0,0.00011196,2]
[406766211,1772167840742,-6932.8775262,0.00011282,2]
[406766213,1772167840751,-820.53684218,0.00011289,2]
[406766215,1772167840760,-1553.940113,0.00011293,2]
[406766217,1772167840769,-773.2413689,0.00011471,2]
[406766219,1772167840778,-10505.48949855,0.00011473,2]
[406766221,1772167840787,-174.61919141,0.00011473,2]
[406766223,1772167840796,-289.2469546,0.00011553,2]
[406766225,1772167840805,-202.0,0.00011559,2]
[406766226,1772167840815,-587.0,0.00011559,2]
[406766229,1772167840824,-204.0,0.00011559,2]
[406766230,1772167840833,-1322.0,0.00011559,2]
[406766233,1772167840843,-160.0,0.00011567,3]
[406766235,1772167840852,-1000.0,0.000116,2]
[406766236,1772167840862,-1546.9340727,0.00011606,2]
[406766239,1772167840871,-175.0628579,0.00011606,2]
[406766241,1772167840881,-207.764,0.00011624,2]
[406766243,1772167840890,-227.916,0.00011624,2]
[406766245,1772167840899,-150.572,0.00011624,2]
[406766247,1772167840908,-250.0,0.00011624,2]
[406766249,1772167840917,-150.072,0.00011624,2]
[406766251,1772167840926,-225.637,0.00011624,2]
[406766253,1772167840935,-1553.940113,0.000117,2]
[406766255,1772167840945,-837.72649529,0.00011726,2]
[406766257,1772167840954,-160.0,0.00011741,4]
[406766259,1772167840964,-424.46974046,0.00011742,2]
[406766261,1772167840973,-160.0,0.00011916,5]
[406766263,1772167840982,-1759.9879786,0.00011922,2]
[406766265,1772167840992,-210.74,0.00012,2]
[406766267,1772167841001,-500.0,0.00012,2]
[406766269,1772167841010,-5000.0,0.00012,2]
[406766271,1772167841020,-386.94687977,0.00012,2]
[406766273,1772167841029,-801.85129955,0.00012019,2]
[406766275,1772167841038,-181.08010149,0.00012021,2]
[406766277,1772167841048,-160.0,0.0001209,6]
[406766279,1772167841057,-194.77721674,0.000122,2]
[406766281,1772167841066,-1750.93158309,0.00012258,6]
[406766283,1772167841076,-160.0,0.00012265,7]
[406766285,1772167841085,-261.93838102,0.00012265,5]
[406766287,1772167841094,-864.0,0.00012316,2]
[406766289,1772167841103,-2068.24,0.00012329,2]
[406766291,1772167841112,-1723.53,0.00012329,2]
[406766293,1772167841121,-1436.28,0.00012329,2]
[406766295,1772167841130,-1196.9,0.00012329,2]
[406766297,1772167841139,-997.42,0.00012329,2]
[406766299,1772167841148,-831.18,0.00012329,2]
[406766300,1772167841157,-692.65,0.00012329,2]
[406766303,1772167841166,-577.21,0.00012329,2]
[406766305,1772167841175,-481.01,0.00012329,2]
[406766306,1772167841184,-516.5021385,0.00012329,2]
[406766308,1772167841195,-400.84,0.00012329,2]
[406766311,1772167841207,-334.03,0.00012329,2]
[406766313,1772167841216,-278.36,0.00012329,2]
[406766315,1772167841225,-231.97,0.00012329,2]
[406766317,1772167841234,-193.3,0.00012329,2]
[406766318,1772167841245,-161.09,0.00012329,2]
[406766320,1772167841255,-805.46,0.00012329,2]
[406766322,1772167841265,-745.00168344,0.000125,2]
[406766324,1772167841283,-831.51979763,0.00012567,2]
[406766326,1772167841293,-187.78006525,0.00012569,2]
[406766328,1772167841302,-823.0,0.00012715,2]
[406766330,1772167841312,-483.49984266,0.00012775,2]
[406766332,1772167841321,-483.39958221,0.00012775,2]
[406766334,1772167841331,-168.0,0.00012953,2]
[406766336,1772167841343,-1759.9879786,0.00012966,2]
[406766338,1772167841362,-210.1971892,0.00012966,2]
[406766340,1772167841371,-300.0,0.00013,2]
[406766342,1772167841381,-168.0,0.00013015,2]
[406766344,1772167841390,-1750.93158309,0.00013043,7]
[406766346,1772167841399,-862.28603014,0.00013115,2]
[406766348,1772167841409,-194.72792766,0.00013117,2]
[406766350,1772167841419,-181.29951411,0.00013273,2]
[406766352,1772167841428,-500.96112743,0.00013273,2]
[406766354,1772167841437,-500.0,0.00013273,2]
[406766356,1772167841447,-500.0,0.00013273,2]
[406766358,1772167841456,-500.0,0.00013273,2]
[406766360,1772167841466,-501.17519017,0.00013273,2]
[406766362,1772167841475,-186.68378636,0.00013273,2]
[406766364,1772167841486,-527.59304925,0.00013273,2]
[406766366,1772167841495,-508.495681,0.00013273,2]
[406766368,1772167841504,-500.0794932,0.00013273,2]
[406766370,1772167841514,-500.0,0.00013273,2]
[406766373,1772167841524,-500.0,0.00013273,2]
[406766375,1772167841533,-270.45996488,0.00013273,2]
[406766377,1772167841543,-501.20467013,0.00013273,2]
[406766379,1772167841553,-212.04426808,0.00013273,2]
[406766381,1772167841563,-500.0,0.00013273,2]
[406766383,1772167841573,-263.06524189,0.00013273,2]
[406766385,1772167841583,-502.39788491,0.00013273,2]
[406766386,1772167841591,-500.29624593,0.00013273,2]
[406766388,1772167841601,-168.0,0.00013355,2]
[406766391,1772167841610,-30198.2319184,0.000135,2]
[406766392,1772167841619,-1000.0,0.00013548,2]
[406766394,1772167841629,-333.3693714,0.00013553,2]
[406766396,1772167841638,-165.0,0.000136,2]
[406766399,1772167841648,-273.67684845,0.00013609,2]
[406766400,1772167841658,-168.0,0.00013625,2]
[406766402,1772167841667,-201.93286099,0.00013665,2]
[406766405,1772167841676,-300.0,0.00013673,2]
[406766407,1772167841686,-500.0,0.00013698,2]
[406766409,1772167841695,-500.0,0.00013698,2]
[406766410,1772167841704,-500.0,0.00013698,2]
[406766413,1772167841714,-500.0,0.00013698,2]
[406766415,1772167841723,-500.0,0.00013698,2]
[406766417,1772167841732,-500.0,0.00013698,2]
[406766418,1772167841741,-500.0,0.00013698,2]
[406766420,1772167841750,-500.0,0.00013698,2]
[406766422,1772167841760,-527.71156854,0.00013698,2]
[406766424,1772167841769,-500.0,0.00013698,2]
[406766427,1772167841779,-505.18209677,0.00013698,2]
[406766428,1772167841788,-500.0,0.00013698,2]
[406766431,1772167841798,-500.0,0.00013698,2]
[406766433,1772167841808,-500.0,0.00013698,2]
[406766435,1772167841818,-500.0,0.00013698,2]
[406766436,1772167841827,-500.0,0.00013698,2]
[406766439,1772167841836,-500.0,0.00013698,2]
[406766441,1772167841847,-500.0,0.00013698,2]
[406766443,1772167841857,-500.0,0.00013698,2]
[406766445,1772167841866,-409.78840635,0.00013698,2]
[406766447,1772167841875,-500.0,0.00013698,2]
[406766449,1772167841884,-500.0,0.00013698,2]
[406766451,1772167841894,-500.0,0.00013698,2]
[406766452,1772167841903,-500.0,0.00013698,2]
[406766455,1772167841913,-500.0,0.00013698,2]
[406766457,1772167841922,-500.0,0.00013698,2]
[406766458,1772167841931,-500.0,0.00013698,2]
[406766461,1772167841941,-500.0,0.00013698,2]
[406766462,1772167841950,-500.0,0.00013698,2]
[406766464,1772167841959,-500.0,0.00013698,2]
[406766467,1772167841970,-500.0,0.00013698,2]
[406766469,1772167841981,-500.0,0.00013698,2]
[406766471,1772167841990,-500.0,0.00013698,2]
[406766473,1772167841999,-500.0,0.00013698,2]
[406766475,1772167842009,-500.0,0.00013698,2]
[406766477,1772167842018,-500.0,0.00013698,2]
[406766479,1772167842028,-500.0,0.00013698,2]
[406766481,1772167842038,-500.0,0.00013698,2]
[406766483,1772167842047,-500.0,0.00013698,2]
[406766485,1772167842056,-499.838,0.00013698,2]
[406766487,1772167842065,-220.83317959,0.00013698,2]
[406766489,1772167842075,-500.0,0.00013698,2]
[406766491,1772167842084,-500.0,0.00013698,2]
[406766493,1772167842094,-500.0,0.00013698,2]
[406766495,1772167842103,-500.0,0.00013698,2]
[406766497,1772167842115,-500.0,0.00013698,2]
[406766499,1772167842125,-500.0,0.00013698,2]
[406766501,1772167842134,-500.0,0.00013698,2]
[406766503,1772167842143,-500.0,0.00013698,2]
[406766505,1772167842152,-500.0,0.00013698,2]
[406766507,1772167842162,-500.0,0.00013698,2]
[406766509,1772167842172,-500.0,0.00013698,2]
[406766511,1772167842181,-500.0,0.00013698,2]
[406766513,1772167842190,-500.0,0.00013698,2]
[406766515,1772167842203,-500.0,0.00013698,2]
[406766517,1772167842215,-439.46191523,0.00013698,2]
[406766519,1772167842224,-500.0,0.00013698,2]
[406766521,1772167842234,-500.0,0.00013698,2]
[406766523,1772167842245,-500.0,0.00013698,2]
[406766525,1772167842255,-500.0,0.00013698,2]
[406766527,1772167842264,-500.0,0.00013698,2]
[406766529,1772167842274,-500.0,0.00013698,2]
[406766531,1772167842284,-500.0,0.00013698,2]
[406766533,1772167842293,-500.0,0.00013698,2]
[406766535,1772167842303,-629.96674954,0.00013698,2]
[406766537,1772167842312,-507.28887467,0.00013698,2]
[406766539,1772167842321,-500.0,0.00013698,2]
[406766541,1772167842330,-500.0,0.00013698,2]
[406766543,1772167842339,-500.0,0.00013698,2]
[406766545,1772167842349,-500.0,0.00013698,2]
[406766547,1772167842359,-500.0,0.00013698,2]
[406766549,1772167842368,-500.0,0.00013698,2]
[406766551,1772167842377,-500.0,0.00013698,2]
[406766553,1772167842386,-500.0,0.00013698,2]
[406766555,1772167842395,-500.0,0.00013698,2]
[406766557,1772167842404,-323.65175062,0.00013698,2]
[406766559,1772167842414,-500.0,0.00013698,2]
[406766561,1772167842424,-500.0,0.00013698,3]
[406766563,1772167842433,-500.0,0.00013698,4]
[406766565,1772167842442,-500.0,0.00013698,5]
[406766567,1772167842451,-500.0,0.00013698,6]
[406766569,1772167842460,-500.0,0.00013698,7]
[406766571,1772167842469,-500.0,0.00013698,8]
[406766573,1772167842478,-500.0,0.00013698,9]
[406766575,1772167842487,-500.0,0.00013698,10]
[406766577,1772167842496,-500.0,0.00013698,11]
[406766579,1772167842504,-500.0,0.00013698,12]
[406766581,1772167842514,-500.0,0.00013698,13]
[406766582,1772167842523,-500.0,0.00013698,14]
[406766584,1772167842532,-500.0,0.00013698,15]
[406766587,1772167842541,-579.76299667,0.00013698,16]
[406766588,1772167842550,-500.0,0.00013698,2]
[406766591,1772167842560,-500.0,0.00013698,2]
[406766592,1772167842569,-500.0,0.00013698,2]
[406766594,1772167842578,-500.0,0.00013698,2]
[406766596,1772167842587,-500.0,0.00013698,2]
[406766598,1772167842599,-460.78156186,0.00013698,2]
[406766600,1772167842608,-500.0,0.00013698,2]
[406766602,1772167842617,-500.0,0.00013698,2]
[406766604,1772167842626,-500.0,0.00013698,2]
[406766606,1772167842636,-500.0,0.00013698,2]
[406766608,1772167842645,-501.01,0.00013698,2]
[406766610,1772167842654,-632.3,0.00013698,2]
[406766612,1772167842663,-632.3,0.00013698,2]
[406766614,1772167842672,-632.3,0.00013698,2]
[406766617,1772167842685,-632.3,0.00013698,2]
[406766640,1772167842855,-632.3,0.00013698,2]
[406766643,1772167842865,-632.3,0.00013698,2]
[406766645,1772167842875,-632.3,0.00013698,2]
[406766647,1772167842884,-632.3,0.00013698,2]
[406766650,1772167842893,-632.3,0.00013698,2]
[406766653,1772167842902,-632.3,0.00013698,2]
[406766655,1772167842912,-632.3,0.00013698,2]
[406766657,1772167842921,-632.3,0.00013698,2]
[406766659,1772167842931,-632.3,0.00013698,2]
[406766661,1772167842940,-632.3,0.00013698,2]
[406766663,1772167842949,-632.3,0.00013698,2]
[406766665,1772167842961,-632.3,0.00013698,2]
[406766667,1772167842970,-632.3,0.00013698,2]
[406766669,1772167842980,-632.3,0.00013698,2]
[406766671,1772167842989,-632.3,0.00013698,2]
[406766673,1772167842998,-632.3,0.00013698,2]
[406766676,1772167843008,-632.3,0.00013698,2]
[406766678,1772167843017,-632.3,0.00013698,2]
[406766680,1772167843025,-632.3,0.00013698,2]
[406766682,1772167843035,-632.35858068,0.00013698,2]
[406766684,1772167843044,-500.0,0.00013698,2]
[406766686,1772167843053,-500.0,0.00013698,2]
[406766688,1772167843062,-500.0,0.00013698,2]
[406766690,1772167843071,-500.0,0.00013698,2]
[406766692,1772167843080,-534.38556375,0.00013698,2]
[406766694,1772167843089,-500.0,0.00013698,2]
[406766696,1772167843098,-500.0,0.00013698,2]
[406766698,1772167843107,-500.0,0.00013698,2]
[406766700,1772167843117,-500.0,0.00013698,2]
[406766702,1772167843126,-500.0,0.00013698,2]
[406766704,1772167843135,-500.0,0.00013698,2]
[406766706,1772167843144,-500.0,0.00013698,2]
[406766708,1772167843153,-500.0,0.00013698,2]
[406766710,1772167843162,-500.0,0.00013698,2]
[406766712,1772167843171,-500.0,0.00013698,2]
[406766714,1772167843180,-500.0,0.00013698,2]
[406766716,1772167843189,-500.0,0.00013698,2]
[406766718,1772167843199,-500.0,0.00013698,2]
[406766720,1772167843211,-500.0,0.00013698,2]
[406766722,1772167843221,-500.0,0.00013698,2]
[406766724,1772167843230,-500.0,0.00013698,2]
[406766726,1772167843239,-500.0,0.00013698,2]
[406766728,1772167843249,-277.66843898,0.00013698,2]
[406766730,1772167843258,-566.41648268,0.00013698,2]
[406766732,1772167843267,-1310.85,0.00013698,2]
[406766733,1772167843278,-1310.85,0.00013698,2]
[406766735,1772167843288,-1310.85,0.00013698,2]
[406766737,1772167843297,-1310.85,0.00013698,2]
[406766738,1772167843307,-1310.85,0.00013698,2]
[406766739,1772167843316,-1310.85,0.00013698,2]
[406766740,1772167843326,-1310.85,0.00013698,2]
[406766741,1772167843335,-1310.85,0.00013698,2]
[406766742,1772167843345,-1310.85,0.00013698,2]
[406766744,1772167843354,-1310.85,0.00013698,2]
[406766746,1772167843363,-1310.85,0.00013698,2]
[406766748,1772167843373,-1310.85,0.00013698,2]
[406766750,1772167843382,-1310.85,0.00013698,2]
[406766751,1772167843393,-1310.85,0.00013698,2]
[406766752,1772167843402,-1310.85,0.00013698,2]
[406766753,1772167843412,-1310.85,0.00013698,2]
[406766754,1772167843423,-1310.85,0.00013698,2]
[406766755,1772167843432,-1310.85,0.00013698,2]
[406766756,1772167843442,-1310.85,0.00013698,2]
[406766757,1772167843451,-1310.85,0.00013698,2]
[406766758,1772167843460,-1310.85,0.00013698,2]
[406766759,1772167843470,-1310.85,0.00013698,2]
[406766760,1772167843479,-1310.85,0.00013698,2]
[406766761,1772167843488,-1310.90301576,0.00013698,2]
[406766762,1772167843498,-748.574951,0.00013699,2]
[406766763,1772167843508,-1000.0,0.00013699,2]
[406766764,1772167843517,-542.3290321,0.00013699,2]
[406766765,1772167843526,-46940.0490847,0.00013699,2]
[406766766,1772167843535,-172.84855229,0.00013699,2]
[406766767,1772167843544,-249.86165609,0.00013699,2]
[406766768,1772167843554,-500.0,0.00013699,2]
[406766769,1772167843563,-501.3439062,0.00013699,2]
[406766770,1772167843572,-224.24775932,0.00013699,2]
[406766771,1772167843582,-552.20639468,0.00013699,2]
[406766773,1772167843591,-500.0,0.00013699,2]
[406766775,1772167843600,-500.0,0.00013699,2]
[406766777,1772167843609,-500.0,0.00013699,2]
[406766779,1772167843619,-500.0,0.00013699,2]
[406766781,1772167843630,-500.0,0.00013699,2]
[406766783,1772167843640,-500.0,0.00013699,2]
[406766785,1772167843649,-500.0,0.00013699,2]
[406766787,1772167843658,-500.0,0.00013699,2]
[406766789,1772167843667,-500.52642129,0.00013699,2]
[406766791,1772167843676,-500.0,0.00013699,2]
[406766793,1772167843686,-350.62682168,0.00013699,2]
[406766795,1772167843696,-167.38876226,0.00013699,2]
[406766797,1772167843705,-150.0,0.00013699,2]
[406766799,1772167843714,-500.0,0.00013699,2]
[406766801,1772167843723,-500.0,0.00013699,2]
[406766803,1772167843732,-500.88709963,0.00013699,2]
[406766805,1772167843742,-500.0,0.00013699,2]
[406766807,1772167843752,-500.0,0.00013699,2]
[406766809,1772167843761,-229.17084854,0.00013699,2]
[406766811,1772167843771,-159.57337011,0.00013699,2]
[406766813,1772167843780,-500.0,0.00013699,2]
[406766815,1772167843789,-309.90369384,0.00013699,2]
[406766817,1772167843797,-160.46,0.00013699,2]
[406766819,1772167843807,-150.62,0.000137,2]
[406766821,1772167843816,-1387.0,0.00013735,2]
[406766823,1772167843825,-637.0,0.00013735,2]
[406766825,1772167843834,-400.38936674,0.00013821,2]
[406766827,1772167843844,-1000.0,0.00013821,2]
[406766829,1772167843855,-443.01317862,0.00013821,2]
[406766831,1772167843864,-1000.0,0.00013821,2]
[406766833,1772167843873,-502.57136048,0.00013821,2]
[406766835,1772167843883,-1000.0,0.00013821,2]
[406766837,1772167843892,-1750.93158309,0.00013828,8]
[406766839,1772167843901,-440.226469,0.0001385,7]
[406766841,1772167843910,-1152.0,0.00013987,2]
[406766843,1772167843919,-1000.0,0.00014,2]
[406766845,1772167843928,-887.45656578,0.00014175,2]
[406766847,1772167843937,-209.40437684,0.00014213,2]
[406766849,1772167843946,-600.0,0.00014221,2]
[406766851,1772167843955,-1000.0,0.00014247,2]
[406766853,1772167843964,-384.90158564,0.00014247,2]
[406766855,1772167843973,-500.71139522,0.00014247,2]
[406766857,1772167843983,-502.01724537,0.00014247,2]
[406766859,1772167843992,-1000.0,0.00014247,2]
[406766861,1772167844001,-1000.0,0.00014247,2]
[406766863,1772167844010,-504.54390126,0.00014247,2]
[406766865,1772167844019,-1000.67832522,0.00014247,2]
[406766867,1772167844028,-1000.0,0.00014247,2]
[406766869,1772167844037,-1000.0,0.00014247,2]
[406766871,1772167844046,-250.0,0.00014247,2]
[406766873,1772167844055,-500.61604163,0.00014247,2]
[406766875,1772167844064,-500.63951738,0.00014247,2]
[406766877,1772167844073,-1000.0,0.00014247,2]
[406766879,1772167844082,-1000.0,0.00014247,2]
[406766881,1772167844091,-437.20497784,0.00014247,2]
[406766883,1772167844100,-1500.0,0.00014368,2]
[406766885,1772167844109,-175.43519485,0.00014368,2]
[406766887,1772167844119,-1558.47701518,0.00014368,2]
[406766889,1772167844128,-160.0,0.00014489,2]
[406766891,1772167844137,-744.82189483,0.00014489,2]
[406766893,1772167844146,-1750.93158309,0.00014614,10]
[406766895,1772167844155,-150.0,0.00014624,2]
[406766897,1772167844163,-150.0,0.00014624,2]
[406766899,1772167844173,-150.0,0.00014624,2]
[406766901,1772167844182,-150.0,0.00014624,2]
[406766903,1772167844191,-150.0,0.00014624,2]
[406766905,1772167844202,-3403.407828,0.00014673,7]
[406766907,1772167844212,-792.0,0.00014702,2]
[406766909,1772167844222,-524.08911959,0.00014751,2]
[406766911,1772167844231,-217.15233878,0.00014761,2]
[406766913,1772167844241,-900.0,0.00014768,2]
[406766915,1772167844250,-660.46786444,0.00014795,2]
[406766917,1772167844260,-1500.0,0.00014795,2]
[406766919,1772167844269,-356.81255236,0.00014795,2]
[406766921,1772167844280,-1340.12685625,0.00014795,2]
[406766923,1772167844290,-252.26212389,0.00014795,2]
[406766925,1772167844299,-153.48923481,0.00014795,2]
[406766927,1772167844309,-1500.0,0.00014795,2]
[406766929,1772167844318,-1500.0,0.00014795,2]
[406766930,1772167844328,-263.37530631,0.000148,5]
[406766931,1772167844337,-165.0,0.000149,2]
[406766932,1772167844346,-1000.0,0.00014902,2]
[406766933,1772167844355,-244.0,0.00014902,2]
[406766934,1772167844364,-2000.0,0.00014916,2]
[406766935,1772167844373,-11704.72490053,0.00015,2]
[406766936,1772167844382,-151.8217391,0.00015,2]
[406766937,1772167844391,-77117.12541212,0.00015,2]
[406766938,1772167844400,-242.0,0.00015,2]
[406766939,1772167844409,-354.0,0.00015,2]
[406766940,1772167844418,-613.0,0.00015,2]
[406766941,1772167844428,-151.0,0.00015,2]
[406766942,1772167844436,-715.0,0.00015055,2]
[406766943,1772167844445,-812.0,0.00015055,2]
[406766944,1772167844455,-1522.35036019,0.00015063,2]
[406766945,1772167844463,-170.074072,0.00015068,2]
[406766946,1772167844472,-403.0,0.00015109,2]
[406766947,1772167844482,-1000.0,0.000152,2]
[406766948,1772167844491,-1000.0,0.000152,2]
[406766949,1772167844500,-1000.0,0.000152,2]